lending/lending_fUSD_20251111
["ID","MTS","AMOUNT","RATE_DAILY","PERIOD"]
[393595463,1762829446094,-164.295692,0.00021918,7]
[393595464,1762829446103,-152.77167,0.00021918,7]
[393595465,1762829446113,-229.064648,0.00021918,7]
[393595466,1762829446122,-151.0,0.00021918,7]
[393595467,1762829446131,-151.0,0.00021918,7]
[393595468,1762829446141,-151.0,0.00021918,7]
[393595469,1762829446150,-211.679061,0.00021918,7]
[393595470,1762829446161,-151.0,0.00021918,7]
[393595471,1762829446171,-151.0,0.00021918,7]
[393595472,1762829446180,-151.0,0.00021918,7]
[393595473,1762829446189,-151.0,0.00021918,7]
[393595474,1762829446198,-219.650273,0.00021918,7]
[393595475,1762829446207,-1388.95024,0.00022,2]
[393595476,1762829446216,-6424.70997696,0.00022481,2]
[393595477,1762829446226,-5514.90781072,0.00022481,2]
[393595478,1762829446235,-21562.4942405,0.00022504,2]
[393595479,1762829446244,-150.99,0.00022562,2]
[393595480,1762829446255,-1000.0,0.0002259,2]
[393595481,1762829446263,-1597.0,0.0002268,2]
[393595482,1762829446272,-820.0,0.0002268,2]
[393595484,1762829446437,-1274.0,0.0002268,2]
[393595485,1762829446447,-813.0,0.0002268,2]
[393595486,1762829446457,-2143.0,0.0002268,2]
[393595487,1762829446467,-1116.512,0.0002268,2]
[393595488,1762829446477,-909.968,0.0002268,2]
[393595489,1762829446487,-25606.0778623,0.00022803,2]
[393595490,1762829446497,-151.0,0.00022837,7]
[393595491,1762829446507,-151.0,0.00022837,7]
[393595492,1762829446517,-151.0,0.00022837,7]
[393595493,1762829446526,-151.0,0.00022837,7]
[393595494,1762829446536,-151.0,0.00022837,7]
[393595495,1762829446546,-151.0,0.00022837,7]
[393595496,1762829446555,-54057.05707664,0.00022837,2]
[393595497,1762829446591,-1490.53,0.00022837,2]
[393595499,1762829446799,-757.67751449,0.00022837,2]
[393595500,1762829446810,-1618.42735996,0.00022837,2]
[393595501,1762829446825,-15091.323609,0.00022837,2]
[393595504,1762829536652,2097.99,0.0001221,2]
[393595505,1762829536863,2097.99,0.00012827,2]
[393595506,1762829537334,912.571056,0.00013444,2]
[393595507,1762829537361,1185.418944,0.00013444,2]
[393595508,1762829537571,2097.99,0.00014062,2]
[393595509,1762829537772,2097.99,0.00014679,2]
[393595510,1762829546882,-151.55243496,0.00015297,2]
[393595517,1762829878950,220.23,0.00030137,120]
[393595525,1762829972213,1313.09575907,0.000301,120]
[393595527,1762830034017,-363.36161205,0.00015297,2]
[393595528,1762830034124,-136.63838795,0.00015297,2]
[393595529,1762830034150,-320.49422114,0.00015297,2]
[393595531,1762830062122,150.0,0.00022928,120]
[393595586,1762830400116,-179.50577886,0.00015297,2]
[393595587,1762830400137,-136.64788552,0.00015297,2]
[393595610,1762830631968,-614.57003222,0.00015197,2]
[393595611,1762830631978,-303.56053037,0.00015297,2]
[393595612,1762830631987,-1946.43756504,0.00015297,2]
[393595613,1762830631996,-2097.99,0.00015914,2]
[393595614,1762830632006,-2097.99,0.00016531,2]
[393595615,1762830632015,-300.0,0.00017148,2]
[393595616,1762830632024,-300.0,0.00017148,2]
[393595617,1762830632033,-2097.99,0.00017149,2]
[393595618,1762830632043,-914.7984,0.00017491,2]
[393595619,1762830632053,-232.03,0.0001758,2]
[393595620,1762830632062,-151.0,0.0001758,2]
[393595621,1762830632071,-151.0,0.0001758,2]
[393595622,1762830632080,-151.0,0.0001758,2]
[393595623,1762830632090,-151.0,0.0001758,2]
[393595624,1762830632101,-151.0,0.0001758,2]
[393595625,1762830632110,-151.0,0.0001758,2]
[393595626,1762830632121,-151.0,0.0001758,2]
[393595627,1762830632132,-151.0,0.0001758,2]
[393595628,1762830632141,-151.0,0.0001758,2]
[393595629,1762830632151,-151.0,0.0001758,2]
[393595630,1762830632161,-166.31534642,0.0001758,2]
[393595631,1762830632171,-294.37176454,0.00017589,2]
[393595632,1762830632180,-500.0,0.00017589,2]
[393595633,1762830632189,-500.0,0.00017589,2]
[393595634,1762830632199,-500.0,0.00017589,2]
[393595635,1762830632208,-500.0,0.00017589,2]
[393595636,1762830632218,-500.0,0.00017589,2]
[393595637,1762830632227,-500.0,0.00017589,2]
[393595638,1762830632236,-500.0,0.00017589,2]
[393595639,1762830632245,-500.0,0.00017589,2]
[393595641,1762830632254,-321.62638563,0.00017589,2]
[393595643,1762830632263,-500.0,0.00017589,2]
[393595645,1762830632272,-500.0,0.00017589,2]
[393595647,1762830632281,-500.0,0.00017589,2]
[393595649,1762830632290,-500.0,0.00017589,2]
[393595651,1762830632299,-500.0,0.00017589,2]
[393595653,1762830632308,-500.0,0.00017589,2]
[393595655,1762830632317,-500.0,0.00017589,2]
[393595657,1762830632326,-249.00212419,0.0001759,2]
[393595659,1762830632335,-500.0,0.0001759,2]
[393595661,1762830632344,-172.37073018,0.0001759,2]
[393595663,1762830632353,-418.44019382,0.0001759,2]
[393595666,1762830632362,-389.79967028,0.0001759,2]
[393595668,1762830632372,-5476.90406246,0.0001759,2]
[393595669,1762830632381,-8735.42579861,0.0001759,2]
[393595671,1762830632390,-166.57987273,0.0001759,2]
[393595673,1762830632398,-57290.72049635,0.00017591,2]
[393595676,1762830632410,-434.30330845,0.00017591,2]
[393595679,1762830632421,-253.49999,0.00017591,2]
[393595682,1762830632431,-2565.68028895,0.00017591,2]
[393595684,1762830632442,-604.83900006,0.00017591,2]
[393595686,1762830632452,-533.36121799,0.00017591,2]
[393595689,1762830632463,-954.81884821,0.00017591,2]
[393595700,1762830637881,-285.82405057,0.00017591,2]
[393595701,1762830637936,-964.0942,0.00017591,2]
[393595702,1762830637948,-2711.53140201,0.00017591,2]
[393595703,1762830637991,-328.31959918,0.00017591,2]
[393595720,1762830640274,-426.22000022,0.00017591,2]
[393595721,1762830640285,-2350.0722614,0.00017591,2]
[393595741,1762830643077,-35.12818495,0.00017591,2]
[393595747,1762830646078,-3209.47777559,0.00017591,2]
[393595748,1762830646093,-329.88503849,0.00017591,2]
[393595749,1762830646106,-500.4799978,0.00017591,2]
[393595750,1762830646202,-42069.54688614,0.00017591,2]
[393595751,1762830646520,-389.77999994,0.00017591,2]
[393595785,1762830876138,-166.66,0.00022111,30]
[393595786,1762830876169,-370.36,0.000222,30]
[393595818,1762831190890,581.53,0.00013699,2]
[393595829,1762831597570,310.0,0.00030137,120]
[393595839,1762831674291,89545.60280531,0.00015,2]
[393595844,1762831720814,13037.61445601,0.0001,2]
[393595846,1762831723834,960.07840102,0.00013699,2]
[393595962,1762831832100,-518.38854276,0.0001742,2]
[393595963,1762831832209,-176.08656724,0.0001742,2]
[393595964,1762831832219,-500.0,0.0001749,2]
[393595965,1762831832228,-369.0695984,0.0001749,2]
[393595966,1762831832237,-300.0,0.0001749,2]
[393595967,1762831832247,-38823.3966,0.00017491,2]
[393595968,1762831832267,-13264.42272535,0.00017608,2]
[393595969,1762831832280,-757.37462446,0.00017608,2]
[393595970,1762831832291,-254.160016,0.00017608,2]
[393595980,1762831838091,-458.64238775,0.00017608,2]
[393595981,1762831838103,-363.7816473,0.00017608,2]
[393595982,1762831838145,-749.9999998,0.00017608,2]
[393595983,1762831838158,-35361.91648599,0.00017608,2]
[393595984,1762831840155,-691.8517532,0.00017608,2]
[393595985,1762831840166,-750.00000005,0.00017608,2]
[393595986,1762831840212,-6956.6628259,0.00017608,2]
[393595987,1762831840222,-500.0,0.0001769,2]
[393595988,1762831840231,-472.7124189,0.0001769,2]
[393595989,1762831840240,-151.562,0.00017701,2]
[393595990,1762831840249,-2097.99,0.00017766,2]
[393595991,1762831840259,-642.90813568,0.00017999,2]
[393595992,1762831840268,-174.30148693,0.00017999,2]
[393595993,1762831840278,-64536.04397779,0.00018,2]
[393595994,1762831840291,-29348.75016,0.00018,2]
[393595995,1762831840304,-1187.05218871,0.00018,2]
[393595996,1762831840376,-111940.04047706,0.00018,2]
[393595997,1762831840385,-202.79447984,0.00018284,2]
[393595998,1762831840395,-2097.99,0.00018384,2]
[393595999,1762831840404,-694.47512,0.0001842,2]
[393596000,1762831840413,-2000.0,0.000189,2]
[393596001,1762831840423,-188.38063838,0.00019,2]
[393596002,1762831840433,-2097.99,0.00019001,2]
[393596003,1762831840442,-640.0,0.00019041,2]
[393596004,1762831840451,-420.0,0.00019093,2]
[393596005,1762831840461,-250.0,0.00019239,2]
[393596006,1762831840471,-300.0,0.00019239,2]
[393596007,1762831840482,-300.0,0.00019239,2]
[393596008,1762831840497,-694.47512,0.0001942,2]
[393596009,1762831840507,-874.48,0.00019593,2]
[393596010,1762831840517,-2097.99,0.00019618,2]
[393596011,1762831840529,-222.78,0.00019738,2]
[393596012,1762831840538,-250.0,0.0001977,2]
[393596013,1762831840548,-10055.7673146,0.000199,2]
[393596014,1762831840558,-163.64,0.00019925,2]
[393596015,1762831840567,-59608.8124658,0.00019935,2]
[393596016,1762831840576,-5000.0,0.0002,2]
[393596017,1762831840586,-166.66,0.00020005,2]
[393596018,1762831840595,-581.53,0.00020187,2]
[393596019,1762831840604,-2097.99,0.00020236,2]
[393596020,1762831840613,-694.47512,0.0002042,2]
[393596021,1762831840624,-166.66,0.00020426,2]
[393596025,1762831840806,-592.1682881,0.000205,2]
[393596026,1762831840816,-187.41995277,0.00020611,2]
[393596027,1762831840826,-163.65060209,0.00020747,2]
[393596028,1762831840835,-36042.65,0.00020778,2]
[393596029,1762831840845,-587.0,0.00020844,2]
[393596030,1762831840856,-166.66,0.00020847,2]
[393596031,1762831840865,-2097.99,0.00020853,2]
[393596032,1762831840875,-150.53,0.00020866,2]
[393596033,1762831840884,-166.66,0.00021269,2]
[393596034,1762831840894,-2139.73,0.00021294,2]
[393596035,1762831840903,-202.79447978,0.00021326,2]
[393596036,1762831840912,-694.47511,0.0002142,2]
[393596037,1762831840921,-2097.99,0.00021471,2]
[393596038,1762831840931,-151.39,0.0002154,2]
[393596039,1762831840940,-166.66,0.0002169,2]
[393596040,1762831840949,-5000.0,0.00021918,2]
[393596041,1762831840959,-150.87,0.00021949,2]
[393596042,1762831840969,-6141.5651024,0.00022087,2]
[393596043,1762831840978,-10055.76731457,0.00022087,2]
[393596044,1762831840987,-2097.99,0.00022088,2]
[393596045,1762831840997,-150.53,0.00022236,2]
[393596046,1762831841007,-59608.8124658,0.00022263,2]
[393596047,1762831841016,-447.53,0.000223,30]
[393596048,1762831841025,-694.47512,0.0002242,2]
[393596049,1762831841034,-999.99,0.00022562,2]
[393596050,1762831841043,-6697.09,0.00022562,2]
[393596051,1762831841053,-150.99,0.00022562,2]
[393596052,1762831841063,-2000.0,0.000226,2]
[393596053,1762831841073,-2097.99,0.00022705,2]
[393596054,1762831841082,-823.0,0.00022755,2]
[393596055,1762831841091,-150.0,0.00022928,2]
[393596056,1762831841100,-151.79830829,0.00022928,2]
[393596057,1762831841110,-233.70164035,0.00022928,2]
[393596058,1762831841119,-500.0,0.00022928,2]
[393596059,1762831841129,-150.0,0.00022928,2]
[393596060,1762831841139,-150.0,0.00022928,2]
[393596061,1762831841149,-500.0,0.00022928,2]
[393596062,1762831841159,-169.0,0.00023,7]
[393596063,1762831841168,-500.0,0.00023065,2]
[393596064,1762831841178,-571.50816602,0.00023065,2]
[393596065,1762831841187,-286.86,0.00023123,2]
[393596066,1762831841196,-813.0,0.00023123,2]
[393596067,1762831841206,-634.062,0.00023123,2]
[393596068,1762831841215,-6664.0,0.00023123,2]
[393596069,1762831841224,-1317.0,0.00023123,2]
[393596070,1762831841234,-574.0,0.00023123,2]
[393596071,1762831841243,-3426.0,0.00023123,2]
[393596072,1762831841253,-608.0,0.00023123,2]
[393596073,1762831841263,-215.27,0.00023151,2]
[393596074,1762831841272,-631.88762296,0.00023202,2]
[393596075,1762831841282,-2097.99,0.00023323,2]
[393596076,1762831841292,-151.0,0.00023323,7]
[393596077,1762831841301,-151.0,0.00023323,7]
[393596078,1762831841311,-157.319793,0.00023323,7]
[393596079,1762831841320,-151.0,0.00023323,7]
[393596080,1762831841329,-169.533571,0.00023323,7]
[393596081,1762831841338,-151.0,0.00023323,7]
[393596082,1762831841347,-151.0,0.00023323,7]
[393596083,1762831841356,-151.0,0.00023323,7]
[393596084,1762831841365,-151.0,0.00023323,7]
[393596085,1762831841374,-155.279579,0.00023323,7]
[393596086,1762831841383,-286.86,0.00023397,2]
[393596087,1762831841392,-150.87,0.00023516,2]
[393596088,1762831841401,-286.86,0.00023671,2]
[393596089,1762831841411,-2097.99,0.0002394,2]
[393596090,1762831841420,-286.86,0.00023945,2]
[393596091,1762831841429,-4824.01052838,0.00024,2]
[393596092,1762831841438,-156.37972,0.00024,7]
[393596093,1762831841447,-605.215793,0.00024,7]
[393596094,1762831841456,-605.99206503,0.00024143,2]
[393596095,1762831841465,-322.6107,0.00024143,2]
[393596096,1762831841474,-270.05421002,0.00024143,2]
[393596097,1762831841488,-286.86,0.00024219,2]
[393596098,1762831841497,-156.088595,0.00024273,7]
[393596099,1762831841507,-292.83409,0.00024273,7]
[393596100,1762831841516,-151.0,0.00024273,7]
[393596101,1762831841526,-6141.5651024,0.00024273,2]
[393596102,1762831841535,-10055.76731457,0.00024273,2]
[393596103,1762831841544,-151.0,0.0002459,7]
[393596104,1762831841555,-241.47575,0.0002459,7]
[393596105,1762831841566,-159.606515,0.0002459,7]
[393596106,1762831841576,-59608.8124658,0.0002459,2]
[393596107,1762831841588,-1000.0,0.00024658,2]
[393596108,1762831841598,-966.83,0.00024658,30]
[393596109,1762831841608,-213.32418948,0.000247,2]
[393596110,1762831841618,-500.0,0.00024773,2]
[393596111,1762831841627,-162.799724,0.000248,7]
[393596112,1762831841635,-151.0,0.000248,7]
[393596113,1762831841646,-151.0,0.000248,7]
[393596114,1762831841665,-125004.50293591,0.000248,3]
[393596124,1762831844755,-605.215793,0.00024,7]
[393596125,1762831844764,-605.215793,0.00024,7]
[393596126,1762831844774,-605.215793,0.00024,7]
[393596127,1762831844784,-202.79447978,0.00024369,2]
[393596128,1762831844793,-57484.75106709,0.000248,3]
[393596129,1762831844803,-151.0,0.000248,7]
[393596130,1762831844812,-151.0,0.000248,7]
[393596131,1762831844822,-151.0,0.000248,7]
[393596132,1762831844831,-151.0,0.000248,7]
[393596133,1762831844840,-244.744961,0.000248,7]
[393596134,1762831844849,-151.0,0.000248,7]
[393596135,1762831844859,-605.215793,0.000248,7]
[393596136,1762831844867,-605.215793,0.000248,7]
[393596137,1762831844876,-605.215793,0.000248,7]
[393596138,1762831844886,-605.215793,0.000248,7]
[393596139,1762831844897,-1152.0,0.00024841,2]
[393596140,1762831844907,-1000.0,0.00024849,2]
[393596141,1762831844916,-153.151303,0.0002488,7]
[393596142,1762831844925,-153.651909,0.0002488,7]
[393596143,1762831844935,-36463.29263296,0.000249,3]
[393596144,1762831844946,-3867.4977431,0.000249,3]
[393596145,1762831844961,-31593.46209319,0.000249,3]
[393596146,1762831845006,-247.66978851,0.000249,3]
[393596147,1762831845026,-3981.16016373,0.000249,3]
[393596153,1762831846348,-19665.99999687,0.000249,3]
[393596154,1762831846614,-333.5681836,0.000249,3]
[393596155,1762831846626,-2554.31691285,0.000249,3]
[393596161,1762831867310,309.22253906,0.00025392,120]
[393596167,1762831995399,299.92558465,0.00030137,120]
[393596343,1762833032271,-486.236175,0.00017221,2]
[393596344,1762833032280,-299.96413113,0.00017265,2]
[393596345,1762833032292,-0.03586887,0.00017265,2]
[393596346,1762833032302,-315.26439326,0.00017308,2]
[393596347,1762833032311,-300.0,0.00017347,2]
[393596348,1762833032321,-288.30738153,0.00017347,2]
[393596349,1762833032338,-11.69261847,0.00017347,2]
[393596350,1762833032348,-315.26439326,0.00017391,2]
[393596351,1762833032358,-207.43795693,0.00017407,2]
[393596352,1762833032370,-992.56204307,0.00017407,2]
[393596353,1762833032380,-300.0,0.00017407,2]
[393596354,1762833032390,-300.0,0.00017407,2]
[393596355,1762833032399,-1200.0,0.00017407,2]
[393596356,1762833032408,-300.0,0.00017407,2]
[393596357,1762833032418,-372.4588,0.00017408,2]
[393596358,1762833032428,-1000.0,0.00017408,2]
[393596359,1762833032437,-1000.0,0.00017408,2]
[393596360,1762833032447,-315.26439326,0.00017473,2]
[393596361,1762833032456,-165.04634189,0.00017473,2]
[393596362,1762833032465,-5605.37065096,0.00017473,2]
[393596363,1762833032475,-202.72346532,0.00017497,2]
[393596364,1762833032485,-151.0,0.00017497,2]
[393596365,1762833032495,-181.77576639,0.00017506,2]
[393596366,1762833032504,-500.0,0.00017506,2]
[393596367,1762833032513,-500.0,0.00017506,2]
[393596368,1762833032523,-400.0,0.00017506,2]
[393596369,1762833032534,-550.0,0.00017506,2]
[393596370,1762833032544,-450.03569497,0.00017507,2]
[393596371,1762833032553,-393.61722593,0.00017507,2]
[393596372,1762833032562,-500.0,0.00017507,2]
[393596373,1762833032572,-500.0,0.00017507,2]
[393596374,1762833032581,-500.0,0.00017507,2]
[393596375,1762833032591,-507.90035275,0.00017507,2]
[393596377,1762833032601,-377.94170616,0.00017507,2]
[393596379,1762833032610,-79831.9025323,0.00017508,2]
[393596381,1762833032622,-1368.79074071,0.00017508,2]
[393596383,1762833032634,-612.54757404,0.00017508,2]
[393596384,1762833032644,-357.0363872,0.00017508,2]
[393596385,1762833032655,-2589.97150341,0.00017508,2]
[393596386,1762833032668,-914.57845021,0.00017508,2]
[393596387,1762833032679,-454.9276565,0.00017508,2]
[393596388,1762833032699,-500.0,0.00017506,2]
[393596390,1762833032708,-247.61474361,0.00017506,2]
[393596392,1762833032727,-252.38525639,0.00017506,2]
[393596393,1762833032736,-436.33474361,0.00017506,2]
[393596398,1762833038350,-63.66525639,0.00017506,2]
[393596399,1762833038360,-391.6944068,0.00017506,2]
[393596400,1762833038372,-108.3055932,0.00017506,2]
[393596401,1762833038381,-500.0,0.00017506,2]
[393596402,1762833038390,-500.0,0.00017506,2]
[393596403,1762833038400,-500.0,0.00017506,2]
[393596404,1762833038409,-523.45994316,0.00017506,2]
[393596405,1762833038419,-500.0,0.00017506,2]
[393596406,1762833038429,-4601.94108032,0.00017508,2]
[393596407,1762833038441,-216492.48807531,0.00017508,2]
[393596408,1762833038452,-500.0,0.00017573,2]
[393596409,1762833038462,-473.60389037,0.00017573,2]
[393596410,1762833038473,-503.74538051,0.00017573,2]
[393596411,1762833038483,-503.59184931,0.00017573,2]
[393596412,1762833038493,-500.0,0.00017573,2]
[393596413,1762833038503,-504.65985304,0.00017573,2]
[393596414,1762833038513,-400.0,0.0001778,2]
[393596415,1762833038523,-400.0,0.00018054,2]
[393596416,1762833038534,-400.0,0.00018328,2]
[393596417,1762833038544,-400.02,0.00018602,2]
[393596418,1762833038554,-300.0,0.00018943,2]
[393596419,1762833038564,-6015.54218903,0.00019,2]
[393596420,1762833038574,-420.0,0.00019004,2]
[393596421,1762833038583,-195.0,0.00019053,2]
[393596422,1762833038593,-1680.0,0.00019098,2]
[393596423,1762833038604,-300.0,0.00019149,2]
[393596424,1762833038613,-189.90660482,0.000192,2]
[393596425,1762833038623,-507.16091307,0.000192,2]
[393596426,1762833038633,-5605.37065091,0.00019907,2]
[393596427,1762833038643,-197.88302434,0.00020131,2]
[393596428,1762833038652,-437.24,0.00020397,2]
[393596429,1762833038662,-165.04634185,0.00020631,2]
[393596430,1762833038671,-173.0,0.00020748,2]
[393596431,1762833038681,-500.0,0.00022262,2]
[393596432,1762833038691,-5605.37065091,0.0002234,2]
[393596433,1762833038702,-1095.15,0.00023014,2]
[393596434,1762833038720,-7899.91382638,0.00023708,2]
[393596435,1762833038733,-165.04634185,0.00023788,2]
[393596436,1762833038744,-1317.0,0.00023808,2]
[393596437,1762833038754,-3426.0,0.00023808,2]
[393596438,1762833038763,-574.0,0.00023808,2]
[393596440,1762833038773,-608.0,0.00023808,2]
[393596442,1762833038783,-1597.0,0.00023808,2]
[393596445,1762833038793,-824.0,0.00023808,2]
[393596446,1762833038803,-724.48,0.00023808,2]
[393596447,1762833038812,-644.402,0.00023808,2]
[393596448,1762833038823,-6664.0,0.00023808,2]
[393596449,1762833038834,-2143.0,0.00023808,2]
[393596450,1762833038848,-1361.0,0.000242,2]
[393596451,1762833038858,-402.78,0.000243,30]
[393596452,1762833038868,-661.9283514,0.0002476,2]
[393596453,1762833038879,-5605.37065091,0.00024774,2]
[393596454,1762833038891,-167.66629869,0.0002478,2]
[393596455,1762833038901,-151.0,0.00024797,7]
[393596456,1762833038911,-39539.0078016,0.000248,3]
[393596457,1762833038924,-13179.6692672,0.0002488,3]
[393596458,1762833038934,-152.73378545,0.00024887,2]
[393596459,1762833038943,-154.21972725,0.00024887,7]
[393596460,1762833038954,-150.0,0.00024887,7]
[393596461,1762833038963,-150.0,0.00024887,7]
[393596462,1762833038973,-601.77402789,0.00025,2]
[393596463,1762833038983,-205.16096661,0.00025,2]
[393596464,1762833038992,-1646.2839291,0.00025,2]
[393596465,1762833039002,-150.0,0.00025024,7]
[393596466,1762833039012,-150.53727216,0.00025024,7]
[393596467,1762833039022,-200.0,0.00025161,7]
[393596468,1762833039033,-1000.0,0.000253,2]
[393596469,1762833039043,-7899.91382636,0.00025471,2]
[393596470,1762833039052,-1000.0,0.00025611,2]
[393596471,1762833039063,-151.26,0.00025746,2]
[393596472,1762833039073,-999.0,0.00025848,3]
[393596473,1762833039086,-13179.6692672,0.00025859,3]
[393596474,1762833039096,-10728.60108037,0.00025879,2]
[393596475,1762833039107,-150.0,0.00025879,2]
[393596476,1762833039117,-150.0,0.00025879,2]
[393596477,1762833039128,-13179.6692672,0.0002598,3]
[393596478,1762833039139,-4471.51573416,0.00026,2]
[393596479,1762833039149,-11071.43284709,0.00026,2]
[393596480,1762833039160,-150.0,0.00026016,2]
[393596481,1762833039171,-150.0,0.00026016,2]
[393596482,1762833039181,-150.0,0.00026153,2]
[393596483,1762833039191,-150.0,0.00026153,2]
[393596484,1762833039201,-150.0,0.0002629,2]
[393596485,1762833039211,-150.0,0.0002629,2]
[393596486,1762833039221,-151.0,0.00026418,7]
[393596487,1762833039230,-13179.6692672,0.0002642,3]
[393596488,1762833039240,-150.0,0.00026427,2]
[393596489,1762833039250,-150.0,0.00026427,2]
[393596490,1762833039261,-150.0,0.0002645,3]
[393596491,1762833039272,-250.0,0.00026564,2]
[393596492,1762833039287,-250.0,0.00026564,2]
[393596493,1762833039297,-202.61489532,0.00026587,3]
[393596494,1762833039307,-581.53,0.00026676,2]
[393596495,1762833039317,-13179.6692672,0.00026798,3]
[393596496,1762833039327,-1317.0,0.00026808,2]
[393596497,1762833039337,-3426.0,0.00026808,2]
[393596498,1762833039347,-574.0,0.00026808,2]
[393596499,1762833039356,-608.0,0.00026808,2]
[393596500,1762833039367,-1597.0,0.00026808,2]
[393596501,1762833039377,-820.0,0.00026808,2]
[393596502,1762833039387,-2488.908,0.00026808,2]
[393596503,1762833039396,-2143.0,0.00026808,2]
[393596504,1762833039407,-165.04634185,0.00026946,2]
[393596505,1762833039416,-1000.0,0.00026959,2]
[393596506,1762833039426,-5605.37065091,0.00027208,2]
[393596507,1762833039435,-7899.91382636,0.00027234,2]
[393596508,1762833039445,-166.35,0.00027269,2]
[393596509,1762833039455,-300.0,0.00027397,2]
[393596510,1762833039464,-157.37,0.00027397,80]
[393596511,1762833039474,-150.12918919,0.0002748,5]
[393596512,1762833039487,-1000.0,0.000276,2]
[393596513,1762833039496,-1428.96391688,0.00027777,2]
[393596514,1762833039506,-13179.6692672,0.00027848,3]
[393596515,1762833039516,-661.9283514,0.00027858,2]
[393596516,1762833039526,-151.26,0.00027892,2]
[393596517,1762833039536,-1361.87589554,0.000279,2]
[393596518,1762833039546,-157.77,0.00027975,2]
[393596519,1762833039556,-437.24,0.00028555,2]
[393596520,1762833039566,-211.0,0.0002882,30]
[393596521,1762833039575,-157.77,0.00028898,2]
[393596522,1762833039585,-13179.6692672,0.00028987,3]
[393596523,1762833039596,-151.0,0.00028987,31]
[393596524,1762833039606,-7899.91382636,0.00028997,2]
[393596525,1762833039615,-2016.61635454,0.00029,30]
[393596527,1762833039624,-5605.37065091,0.00029641,2]
[393596528,1762833039634,-966.83,0.00029704,30]
[393596529,1762833039644,-167.66629866,0.00029712,15]
[393596530,1762833039654,-151.0,0.0002978,31]
[393596531,1762833039663,-151.0,0.0002978,31]
[393596532,1762833039677,-183.830681,0.0002978,31]
[393596533,1762833039687,-13179.6692672,0.00029798,3]
[393596534,1762833039698,-151.0,0.00029798,31]
[393596535,1762833039708,-1317.0,0.00029808,2]
[393596536,1762833039717,-3426.0,0.00029808,2]
[393596537,1762833039727,-574.0,0.00029808,2]
[393596538,1762833039737,-608.0,0.00029808,2]
[393596539,1762833039747,-1597.0,0.00029808,2]
[393596540,1762833039756,-820.0,0.00029808,2]
[393596541,1762833039766,-151.0,0.00029808,31]
[393596542,1762833039776,-166.195446,0.00029808,31]
[393596543,1762833039786,-363.129475,0.00029808,30]
[393596544,1762833039796,-363.129475,0.00029808,30]
[393596545,1762833039806,-363.129475,0.00029808,30]
[393596546,1762833039816,-363.129475,0.00029808,30]
[393596547,1762833039825,-2143.0,0.00029808,2]
[393596548,1762833039835,-157.77,0.00029822,2]
[393596549,1762833039846,-3134.397402,0.000299,2]
[393596550,1762833039857,-302.7044161,0.0003,2]
[393596551,1762833039870,-160.65,0.0003,3]
[393596552,1762833039880,-151.0,0.0003,14]
[393596553,1762833039891,-151.26,0.00030037,2]
[393596554,1762833039900,-165.04634185,0.00030103,2]
[393596555,1762833039910,-13676.9026798,0.00030234,3]
[393596556,1762833039920,-1000.0,0.00030329,2]
[393596557,1762833039933,-13179.6692672,0.00030634,3]
[393596558,1762833039944,-209.172266,0.00030644,31]
[393596559,1762833039954,-154.798207,0.00030644,31]
[393596560,1762833039964,-330.79,0.00030685,30]
[393596561,1762833039974,-157.77,0.00030745,2]
[393596562,1762833039984,-7899.91382636,0.0003076,2]
[393596563,1762833039994,-157.37,0.00030822,80]